fUSD/lending_fUSD_20250905
["ID","MTS","AMOUNT","RATE_DAILY","PERIOD"]
[383745699,1757109033442,-500.0,0.00033464,7]
[383745701,1757109033452,-15343.32255191,0.00033588,2]
[383745703,1757109033462,-500.0,0.0003368,7]
[383745705,1757109033472,-299.79,0.00033698,7]
[383745707,1757109033481,-500.0,0.00033701,7]
[383745710,1757109033491,-500.0,0.00033743,7]
[383745712,1757109033502,-500.0,0.0003382,7]
[383745714,1757109033512,-500.0,0.00033857,7]
[383745716,1757109033523,-500.0,0.00033941,7]
[383745718,1757109033533,-875.28104956,0.00033942,2]
[383745720,1757109033543,-248.0,0.00033973,2]
[383745721,1757109033553,-168.0,0.00034022,2]
[383745724,1757109033563,-433.0,0.0003406,2]
[383745725,1757109033573,-500.0,0.00034142,7]
[383745728,1757109033584,-1404.0,0.00034158,2]
[383745730,1757109033594,-536.7615046,0.00034164,22]
[383745731,1757109033604,-500.0,0.00034173,7]
[383745734,1757109033613,-500.0,0.00034184,7]
[383745736,1757109033623,-500.0,0.00034234,7]
[383745738,1757109033633,-500.0,0.00034241,7]
[383745739,1757109033643,-500.0,0.00034302,7]
[383745742,1757109033653,-196.35202683,0.00034304,7]
[383745744,1757109033663,-532.92,0.00034314,2]
[383745746,1757109033672,-500.0,0.00034322,7]
[383745748,1757109033683,-500.0,0.00034349,7]
[383745750,1757109033693,-299.79,0.00034383,9]
[383745752,1757109033702,-500.0,0.00034497,7]
[383745754,1757109033712,-175.0,0.00034521,30]
[383745755,1757109033722,-2227.17601,0.0003461,2]
[383745758,1757109033732,-500.0,0.00034682,7]
[383745759,1757109033741,-900.0,0.000347,12]
[383745762,1757109033752,-1399.71,0.000347,7]
[383745763,1757109033762,-196.45,0.000347,7]
[383745766,1757109033771,-195.23,0.000347,7]
[383745768,1757109033781,-1679.0,0.00034728,2]
[383745770,1757109033791,-4008.52092176,0.00034774,2]
[383745772,1757109033801,-500.0,0.00034776,7]
[383745774,1757109033812,-150.0,0.0003478,2]
[383745776,1757109033823,-150.0,0.0003478,2]
[383745778,1757109033833,-150.0,0.0003478,2]
[383745779,1757109033843,-150.0,0.0003478,2]
[383745782,1757109033853,-150.0,0.0003478,2]
[383745784,1757109033864,-150.0,0.0003478,2]
[383745786,1757109033874,-150.0,0.0003478,2]
[383745788,1757109033884,-150.0,0.0003478,2]
[383745790,1757109033894,-150.0,0.0003478,2]
[383745791,1757109033904,-150.0,0.0003478,2]
[383745794,1757109033914,-150.0,0.0003478,2]
[383745795,1757109033923,-150.0,0.0003478,2]
[383745798,1757109033937,-500.0,0.0003478,2]
[383745800,1757109033947,-991.32403519,0.00034792,7]
[383745802,1757109033957,-1900.0,0.000348,12]
[383745804,1757109033967,-8195.8341,0.00034817,2]
[383745806,1757109033977,-500.0,0.00034837,7]
[383745808,1757109033986,-1892.53757443,0.00034853,2]
[383745810,1757109033999,-300.36332557,0.00034853,2]
[383745812,1757109034008,-1000.0,0.00034853,2]
[383745814,1757109034018,-500.0,0.00034856,7]
[383745816,1757109034027,-302.08674116,0.00034859,2]
[383745818,1757109034037,-2480.49446159,0.00034862,2]
[383745820,1757109034048,-3401.0309946,0.00034862,2]
[383745822,1757109034059,-307.65528941,0.00034872,2]
[383745826,1757109034083,-192.34471059,0.00034872,2]
[383745828,1757109034093,-107.65528941,0.00034872,2]
[383745830,1757109034106,-42.34471059,0.00034872,2]
[383745832,1757109034116,-150.0,0.00034872,2]
[383745834,1757109034125,-108.89528941,0.00034872,2]
[383745836,1757109034137,-41.10471059,0.00034872,2]
[383745838,1757109034147,-150.0,0.00034872,2]
[383745840,1757109034156,-178.1858801,0.00034872,2]
[383745842,1757109034166,-177.48155896,0.00034872,8]
[383745844,1757109034176,-704.1950974,0.00034872,2]
[383746466,1757109040463,-337.24865513,0.00030499,2]
[383746469,1757109040473,-283.74321438,0.00032877,7]
[383746472,1757109040482,-3414.9362026,0.00034872,2]
[383746475,1757109040492,-1000.0,0.00034872,2]
[383746477,1757109040501,-3381.0,0.00034874,2]
[383746478,1757109040511,-923.0,0.00034874,2]
[383746480,1757109040521,-2035.0,0.00034874,2]
[383746483,1757109040530,-1258.0,0.00034874,2]
[383746486,1757109040541,-1577.0,0.00034874,2]
[383746488,1757109040550,-811.0,0.00034874,2]
[383746490,1757109040560,-6150.0,0.00034874,2]
[383746492,1757109040571,-200.0,0.00034874,2]
[383746494,1757109040583,-12965.53431122,0.00034874,2]
[383748009,1757109057461,-311.92,0.000311,2]
[383748011,1757109057471,-151.0,0.00033028,2]
[383748013,1757109057480,-151.0,0.00033028,2]
[383748015,1757109057489,-2500.0,0.00034853,2]
[383748017,1757109057498,-8177.46568878,0.00034874,2]
[383748019,1757109057507,-4163.0,0.00034874,2]
[383748021,1757109057516,-200.148,0.00034874,2]
[383748023,1757109057525,-150.0,0.00034874,2]
[383748025,1757109057534,-627.76552486,0.00034887,2]
[383748027,1757109057543,-5000.0,0.0003489,2]
[383748029,1757109057553,-500.0,0.00034896,7]
[383748031,1757109057562,-954.02508288,0.000349,2]
[383748033,1757109057571,-2800.0,0.000349,12]
[383748035,1757109057580,-154.83344245,0.000349,2]
[383748037,1757109057590,-1820.36265871,0.000349,2]
[383748039,1757109057600,-600.2,0.00034907,2]
[383748041,1757109057609,-7992.6034525,0.00034915,2]
[383748043,1757109057618,-5606.4960592,0.00034915,2]
[383748045,1757109057629,-4892.0902276,0.00034917,2]
[383748047,1757109057638,-4892.0902277,0.00034917,2]
[383748049,1757109057647,-4008.52092168,0.00034917,2]
[383748051,1757109057656,-600.2,0.00034943,2]
[383748053,1757109057665,-8165.53104248,0.00034949,2]
[383748055,1757109057674,-600.2,0.00034949,2]
[383748057,1757109057683,-24496.5931274,0.00034952,2]
[383748058,1757109057692,-600.2,0.00034952,2]
[383748060,1757109057700,-600.2,0.00034952,2]
[383748062,1757109057709,-25549.98610249,0.00034953,2]
[383748064,1757109057719,-24496.5931274,0.00034953,2]
[383748066,1757109057728,-151.0,0.00034956,7]
[383748068,1757109057737,-11498.0091423,0.00034956,2]
[383748070,1757109057746,-1123.3316383,0.00034956,2]
[383748072,1757109057756,-36847.0,0.00034959,2]
[383748074,1757109057765,-700.0,0.00034961,120]
[383748076,1757109057774,-700.0,0.00034961,120]
[383748078,1757109057784,-700.0,0.00034961,120]
[383748080,1757109057793,-738.33371292,0.00034961,120]
[383748082,1757109057803,-146979.558765,0.00034962,2]
[383748085,1757109057812,-68930.9725763,0.00034962,2]
[383748086,1757109057821,-151.0,0.00034963,6]
[383748088,1757109057830,-156.587,0.00034963,6]
[383748090,1757109057840,-257.91778498,0.00034963,6]
[383748092,1757109057849,-267.46074303,0.00034963,6]
[383748094,1757109057858,-277.35679052,0.00034963,6]
[383748096,1757109057868,-287.61899177,0.00034963,6]
[383748098,1757109057877,-298.26089446,0.00034963,6]
[383748100,1757109057886,-309.29654756,0.00034963,6]
[383748102,1757109057895,-600.0,0.00034963,6]
[383748105,1757109057906,-320.74051982,0.00034963,6]
[383748107,1757109057915,-600.0,0.00034963,6]
[383748109,1757109057924,-151.0,0.00034963,6]
[383748111,1757109057933,-500.0,0.00034963,6]
[383748113,1757109057947,-160.0,0.00034963,6]
[383748115,1757109057956,-332.60791905,0.00034963,6]
[383748117,1757109057965,-600.0,0.00034963,6]
[383748119,1757109057974,-670.58624095,0.00034963,6]
[383748121,1757109057983,-500.0,0.00034963,6]
[383748123,1757109057992,-160.0,0.00034963,6]
[383748125,1757109058001,-151.0,0.00034963,6]
[383748127,1757109058010,-600.0,0.00034963,6]
[383748129,1757109058019,-344.91441206,0.00034963,6]
[383748131,1757109058028,-695.39793187,0.00034963,6]
[383748133,1757109058037,-500.0,0.00034963,6]
[383748135,1757109058046,-160.0,0.00034963,6]
[383748137,1757109058055,-600.0,0.00034963,6]
[383748139,1757109058064,-357.6762453,0.00034963,6]
[383748141,1757109058073,-288.91555516,0.00034963,6]
[383748143,1757109058083,-500.0,0.00034963,6]
[383748145,1757109058093,-370.91026638,0.00034963,6]
[383748147,1757109058103,-500.0,0.00034963,6]
[383748149,1757109058112,-500.0,0.00034963,6]
[383748151,1757109058122,-292.70465615,0.00034963,6]
[383748153,1757109058131,-384.63394623,0.00034963,6]
[383748155,1757109058141,-526.43513801,0.00034963,6]
[383748157,1757109058150,-500.0,0.00034963,6]
[383748159,1757109058159,-398.86540225,0.00034963,6]
[383748161,1757109058168,-151.0,0.00034963,6]
[383748163,1757109058177,-500.0,0.00034963,6]
[383748165,1757109058187,-151.0,0.00034963,6]
[383748167,1757109058196,-500.0,0.00034963,6]
[383748169,1757109058205,-151.0,0.00034963,6]
[383748171,1757109058213,-500.0,0.00034963,6]
[383748173,1757109058222,-151.0,0.00034963,6]
[383748175,1757109058231,-288.21815913,0.00034963,6]
[383748177,1757109058240,-151.0,0.00034963,6]
[383748179,1757109058249,-151.0,0.00034963,6]
[383748181,1757109058258,-151.0,0.00034963,6]
[383748183,1757109058267,-250.0,0.00034963,6]
[383748185,1757109058276,-250.0,0.00034963,6]
[383748187,1757109058286,-500.0,0.00034963,6]
[383748189,1757109058295,-250.0,0.00034963,6]
[383748191,1757109058304,-500.0,0.00034963,6]
[383748193,1757109058313,-250.0,0.00034963,6]
[383748195,1757109058323,-500.0,0.00034963,6]
[383748197,1757109058332,-250.0,0.00034963,6]
[383748199,1757109058341,-250.0,0.00034963,6]
[383748201,1757109058351,-500.0,0.00034963,6]
[383748203,1757109058360,-250.0,0.00034963,6]
[383748205,1757109058371,-250.0,0.00034963,6]
[383748207,1757109058385,-500.0,0.00034963,6]
[383748209,1757109058401,-250.0,0.00034963,6]
[383748211,1757109058410,-381.41178646,0.00034963,6]
[383748213,1757109058419,-500.0,0.00034963,6]
[383748214,1757109058429,-250.0,0.00034963,6]
[383748217,1757109058439,-500.0,0.00034963,6]
[383748219,1757109058448,-250.0,0.00034963,6]
[383748220,1757109058458,-194.72792766,0.00034963,6]
[383748221,1757109058467,-500.0,0.00034963,6]
[383748222,1757109058476,-250.0,0.00034963,6]
[383748223,1757109058485,-291.00437739,0.00034963,6]
[383748224,1757109058495,-618.83398212,0.00034963,6]
[383748225,1757109058504,-250.0,0.00034963,6]
[383748226,1757109058513,-250.0,0.00034963,6]
[383748227,1757109058523,-4475.2302939,0.00034963,6]
[383748229,1757109058532,-250.0,0.00034963,6]
[383748231,1757109058541,-151.0,0.00034963,6]
[383748233,1757109058550,-151.0,0.00034963,6]
[383748235,1757109058559,-151.0,0.00034963,6]
[383748237,1757109058568,-322.6107,0.00034963,6]
[383748239,1757109058577,-151.0,0.00034963,6]
[383748241,1757109058587,-151.0,0.00034963,6]
[383748243,1757109058596,-334.5472959,0.00034963,6]
[383748245,1757109058605,-151.0,0.00034963,6]
[383748247,1757109058614,-151.0,0.00034963,6]
[383748249,1757109058623,-346.92554585,0.00034963,6]
[383748251,1757109058632,-215.12875862,0.00034963,6]
[383748253,1757109058641,-359.76179104,0.00034963,6]
[383748255,1757109058650,-250.0,0.00034963,6]
[383748257,1757109058660,-250.0,0.00034963,6]
[383748259,1757109058669,-250.0,0.00034963,6]
[383748261,1757109058678,-250.0,0.00034963,6]
[383748263,1757109058687,-250.0,0.00034963,6]
[383748265,1757109058698,-250.0,0.00034963,6]
[383748267,1757109058708,-250.0,0.00034963,6]
[383748269,1757109058716,-250.0,0.00034963,6]
[383748271,1757109058725,-250.0,0.00034963,6]
[383748273,1757109058734,-250.0,0.00034963,6]
[383748275,1757109058743,-250.0,0.00034963,6]
[383748277,1757109058753,-250.0,0.00034963,6]
[383748279,1757109058763,-250.0,0.00034963,6]
[383748281,1757109058773,-250.0,0.00034963,6]
[383748283,1757109058782,-250.0,0.00034963,6]
[383748285,1757109058792,-250.0,0.00034963,6]
[383748287,1757109058801,-250.0,0.00034963,6]
[383748289,1757109058811,-250.0,0.00034963,6]
[383748291,1757109058820,-250.0,0.00034963,6]
[383748293,1757109058832,-250.0,0.00034963,6]
[383748295,1757109058842,-250.0,0.00034963,6]
[383748297,1757109058851,-250.0,0.00034963,6]
[383748299,1757109058863,-250.0,0.00034963,6]
[383748301,1757109058872,-250.0,0.00034963,6]
[383748303,1757109058881,-215.19313107,0.00034963,6]
[383748305,1757109058891,-200.0,0.00034964,2]
[383748307,1757109058901,-200.0,0.00034964,2]
[383748309,1757109058910,-704.73514575,0.0003497,2]
[383748311,1757109058919,-500.0,0.0003497,2]
[383748313,1757109058928,-24496.5931274,0.0003497,2]
[383748315,1757109058938,-25849.1147161,0.0003497,2]
[383748317,1757109058950,-296122.8952812,0.00034972,2]
[383748319,1757109058960,-200.0,0.00034972,10]
[383748321,1757109058969,-1335.1357067,0.00034973,2]
[383748324,1757109058978,-8165.53104248,0.00034977,2]
[383748325,1757109058988,-1224.0,0.00034978,7]
[383748327,1757109058997,-1224.0,0.00034978,7]
[383748329,1757109059006,-167.56689422,0.00034979,120]
[383748332,1757109059016,-8165.53104248,0.0003498,2]
[383748333,1757109059026,-17232.7431441,0.0003498,2]
[383748335,1757109059036,-355.58634936,0.0003498,2]
[383748338,1757109059046,-152.67,0.00034982,2]
[383748339,1757109059056,-3626.0,0.00034987,7]
[383748341,1757109059066,-264.43224607,0.0003499,4]
[383748344,1757109059076,-5050.0,0.0003499,8]
[383748346,1757109059086,-5050.0,0.0003499,9]
[383748348,1757109059097,-5050.0,0.0003499,10]
[383748350,1757109059107,-151.0,0.0003499,7]
[383748352,1757109059116,-151.0,0.0003499,7]
[383748354,1757109059126,-151.0,0.0003499,7]
[383748356,1757109059136,-151.0,0.0003499,7]
[383748358,1757109059146,-151.0,0.0003499,7]
[383748360,1757109059155,-151.0,0.0003499,7]
[383748362,1757109059165,-151.0,0.0003499,7]
[383748364,1757109059174,-151.0,0.0003499,7]
[383748366,1757109059184,-151.0,0.0003499,7]
[383748368,1757109059193,-151.0,0.0003499,7]
[383748370,1757109059202,-151.0,0.0003499,5]
[383748372,1757109059211,-151.0,0.0003499,7]
[383748374,1757109059220,-151.0,0.0003499,7]
[383748376,1757109059229,-151.0,0.0003499,7]
[383748378,1757109059238,-151.6872,0.0003499,7]
[383748380,1757109059247,-151.0,0.0003499,7]
[383748382,1757109059257,-151.0,0.0003499,7]
[383748384,1757109059266,-151.0,0.0003499,7]
[383748386,1757109059276,-180943.803013,0.0003499,2]
[383748388,1757109059286,-152.67,0.0003499,2]
[383748390,1757109059295,-290.43323799,0.00034992,7]
[383748392,1757109059304,-5881.52545615,0.00034996,2]
[383748394,1757109059314,-500.0,0.00034999,30]
[383748396,1757109059323,-300.0,0.00034999,10]
[383748398,1757109059333,-300.0,0.00034999,10]
[383748400,1757109059343,-300.0,0.00034999,10]
[383748402,1757109059353,-150.0,0.00034999,2]
[383748404,1757109059363,-219.9890138,0.00034999,2]
[383748406,1757109059372,-1571151.80393396,0.00035,2]
[383748408,1757109059382,-685.32,0.00035,30]
[383748410,1757109059391,-2079.63,0.00035,14]
[383748412,1757109059400,-151.0,0.00035,7]
[383748414,1757109059410,-151.0,0.00035,7]
[383748416,1757109059419,-151.0,0.00035,7]
[383748418,1757109059429,-152.365222,0.00035,7]
[383748420,1757109059438,-151.0,0.00035,7]
[383748422,1757109059447,-151.0,0.00035,7]
[383748424,1757109059458,-151.0,0.00035,7]
[383748427,1757109059468,-151.0,0.00035,7]
[383748429,1757109059478,-151.0,0.00035,7]
[383748431,1757109059487,-151.0,0.00035,7]
[383748433,1757109059497,-151.0,0.00035,5]
[383748435,1757109059506,-151.0,0.00035,7]
[383748437,1757109059515,-151.0,0.00035,7]
[383748439,1757109059525,-151.0,0.00035,7]
[383748441,1757109059535,-153.120082,0.00035,7]
[383748443,1757109059544,-159.708043,0.00035,7]
[383748445,1757109059554,-151.0,0.00035,7]
[383748447,1757109059564,-151.0,0.00035,7]
[383748449,1757109059574,-151.0,0.00035,7]
[383748451,1757109059583,-6326.0,0.00035,120]
[383748453,1757109059592,-151.0,0.00035,7]
[383748455,1757109059603,-151.0,0.00035,7]
[383748457,1757109059612,-151.0,0.00035,7]
[383748459,1757109059621,-236.247032,0.00035,7]
[383748460,1757109059631,-1820.3626587,0.00035017,2]
[383748461,1757109059640,-500.0,0.00035047,7]
[383748462,1757109059649,-152.67,0.00035051,2]
[383748463,1757109059659,-150.0,0.00035054,2]
[383748464,1757109059668,-150.0,0.00035054,2]
[383748465,1757109059677,-150.0,0.00035054,2]
[383748466,1757109059687,-150.0,0.00035054,2]
[383748468,1757109059696,-180.66,0.00035054,2]
[383748470,1757109059706,-250.0,0.00035054,2]
[383748472,1757109059716,-150.0,0.00035054,2]
[383748474,1757109059725,-150.0,0.00035054,2]
[383748476,1757109059735,-500.0,0.00035054,2]
[383748478,1757109059744,-500.0,0.00035056,7]
[383748480,1757109059754,-3169.0,0.00035057,5]
[383748482,1757109059763,-4008.52092168,0.00035061,2]
[383748484,1757109059773,-299.79,0.00035068,11]
[383748486,1757109059783,-5881.52545615,0.00035129,2]
[383748488,1757109059793,-1820.3626587,0.00035134,2]
[383748490,1757109059802,-500.0,0.00035146,2]
[383748492,1757109059812,-150.0,0.00035146,2]
[383748494,1757109059822,-250.0,0.00035146,2]
[383748497,1757109059833,-150.0,0.00035146,2]
[383748499,1757109059843,-150.0,0.00035146,2]
[383748501,1757109059852,-168.0,0.00035147,2]
[383748503,1757109059863,-420.0,0.00035156,2]
[383748505,1757109059873,-500.0,0.00035163,7]
[383748507,1757109059883,-168.0,0.00035178,2]
[383748509,1757109059893,-536.7615046,0.00035193,24]
[383748511,1757109059903,-150.0,0.00035202,2]
[383748513,1757109059914,-302.08674115,0.00035204,2]
[383748515,1757109059924,-4008.52092168,0.00035204,2]
[383748517,1757109059934,-500.0,0.00035209,7]
[383748519,1757109059948,-425.0,0.0003523,2]
[383748521,1757109059957,-1404.0,0.00035241,7]
[383748523,1757109059967,-1820.3626587,0.00035251,2]
[383748525,1757109059977,-5881.52545615,0.00035263,2]
[383748527,1757109059986,-168.0,0.0003527,2]
[383748529,1757109059996,-627.76552484,0.00035285,2]
[383748531,1757109060006,-200.0,0.00035314,2]
[383748533,1757109060016,-500.0,0.00035326,7]
[383748535,1757109060026,-200.0,0.00035328,2]
[383748537,1757109060036,-200.0,0.00035328,2]
[383748539,1757109060046,-200.0,0.00035328,2]
[383748542,1757109060056,-413.163008,0.00035328,2]
[383748544,1757109060067,-4008.52092168,0.00035347,2]
[383748546,1757109060078,-500.0,0.00035348,7]
[383748548,1757109060089,-500.0,0.0003535,7]
[383748550,1757109060101,-168.0,0.00035363,120]
[383748552,1757109060111,-1820.3626587,0.00035368,2]
[383748554,1757109060121,-150.0,0.00035391,2]
[383748556,1757109060131,-1425.0,0.00035391,2]
[383748558,1757109060141,-500.0,0.00035396,7]
[383748560,1757109060151,-5881.52545615,0.00035396,2]
[383748562,1757109060161,-195.23,0.000354,7]
[383748564,1757109060171,-168.26,0.00035416,2]
[383748566,1757109060181,-166.9,0.0003542,2]
[383748568,1757109060191,-500.0,0.0003542,2]
[383748570,1757109060201,-150.0,0.0003542,2]
[383748572,1757109060211,-200.0,0.0003542,2]
[383748574,1757109060221,-150.0,0.0003542,2]
[383748575,1757109060232,-500.0,0.00035434,7]
[383748577,1757109060242,-500.0,0.0003547,2]
[383748578,1757109060252,-1820.3626587,0.00035485,2]
[383748580,1757109060262,-4008.52092168,0.00035491,2]
[383748581,1757109060272,-168.0,0.00035492,2]
[383748583,1757109060282,-685.32,0.000355,30]
[383748585,1757109060293,-7826.623053,0.000355,7]
[383748586,1757109060303,-2079.63,0.000355,14]
[383748588,1757109060313,-186.318695,0.00035502,2]
[383748589,1757109060323,-168.0,0.00035508,2]
[383748591,1757109060333,-154.83344245,0.00035516,2]
[383748593,1757109060343,-500.0,0.00035519,7]
[383748594,1757109060362,-5881.52545615,0.0003553,2]
[383748596,1757109060376,-302.08674115,0.00035548,2]
[383748598,1757109060387,-3052.0,0.0003556,2]
[383748599,1757109060397,-355.58634936,0.00035566,2]
[383748601,1757109060407,-355.58634936,0.00035566,2]
[383748602,1757109060417,-501.3327232,0.00035569,7]
[383748604,1757109060427,-500.0,0.0003557,2]
[383748606,1757109060436,-500.0,0.0003557,2]
[383748607,1757109060446,-500.0,0.0003557,2]
[383748609,1757109060455,-1964.02694111,0.00035576,2]
[383748610,1757109060465,-425.67471744,0.00035576,4]
[383748612,1757109060475,-87286.7162554,0.00035576,4]
[383748614,1757109060484,-7538558.681053,0.00035576,6]
[383748615,1757109060494,-200.0,0.00035585,2]
[383748617,1757109060504,-200.0,0.00035585,2]
[383748619,1757109060514,-200.0,0.00035585,2]
[383748621,1757109060524,-200.0,0.00035585,2]
[383748622,1757109060533,-200.0,0.00035585,2]
[383748624,1757109060543,-200.0,0.00035585,2]
[383748626,1757109060553,-200.0,0.00035585,2]
[383748627,1757109060564,-200.0,0.00035585,2]
[383748629,1757109060575,-200.0,0.00035585,2]
[383748631,1757109060593,-200.0,0.00035585,2]
[383748633,1757109060603,-200.0,0.00035585,2]
[383748635,1757109060613,-200.0,0.00035585,2]
[383748636,1757109060623,-200.0,0.00035585,2]
[383748638,1757109060633,-200.0,0.00035585,2]
[383748640,1757109060643,-200.0,0.00035585,2]
[383748641,1757109060652,-200.0,0.00035585,2]
[383748643,1757109060662,-200.0,0.00035585,2]
[383748645,1757109060671,-200.0,0.00035585,2]
[383748646,1757109060681,-200.0,0.00035585,2]
[383748648,1757109060691,-200.0,0.00035585,2]
[383748650,1757109060700,-200.0,0.00035585,2]
[383748651,1757109060710,-200.0,0.00035585,2]
[383748653,1757109060720,-200.0,0.00035585,2]
[383748655,1757109060730,-200.0,0.00035585,2]
[383748656,1757109060740,-200.0,0.00035585,2]
[383748658,1757109060749,-200.0,0.00035585,2]
[383748660,1757109060759,-200.0,0.00035585,2]
[383748661,1757109060768,-200.0,0.00035585,2]
[383748663,1757109060779,-200.0,0.00035585,2]
[383748665,1757109060788,-200.0,0.00035585,2]
[383748666,1757109060798,-200.0,0.00035585,2]
[383748668,1757109060807,-200.0,0.00035585,2]
[383748670,1757109060817,-200.0,0.00035585,2]
[383748671,1757109060827,-200.0,0.00035585,2]
[383748673,1757109060836,-200.0,0.00035585,2]
[383748675,1757109060846,-218.0,0.00035585,2]
[383748677,1757109060856,-2227.17602,0.0003561,2]
[383748679,1757109060866,-503.24709841,0.00035615,30]
[383748681,1757109060876,-300.0,0.00035615,10]
[383748683,1757109060886,-423.4246746,0.00035615,10]
[383748685,1757109060896,-300.0,0.00035615,10]
[383748687,1757109060905,-400.0,0.00035616,60]
[383748689,1757109060915,-499.98,0.00035616,60]
[383748691,1757109060924,-158.838293,0.00035616,10]
[383748693,1757109060934,-499.98,0.00035616,60]
[383748695,1757109060948,-179.647473,0.00035616,10]
[383748697,1757109060958,-159.678662,0.00035616,10]
[383748699,1757109060968,-156.455814,0.00035616,10]
[383748701,1757109060979,-169.711117,0.00035616,10]
[383748703,1757109060989,-400.0,0.00035616,60]
[383748704,1757109060998,-164.886452,0.00035616,10]
[383748705,1757109061009,-164.886453,0.00035616,10]
[383748706,1757109061020,-156.92717,0.00035616,10]
[383748707,1757109061029,-339.30249,0.00035616,10]
[383748708,1757109061038,-634.468343,0.00035616,10]
[383748709,1757109061048,-157.354814,0.00035616,10]
[383748710,1757109061057,-170.344832,0.00035616,10]
[383748711,1757109061066,-499.98,0.00035616,60]
[383748712,1757109061075,-158.793334,0.00035616,10]
[383748713,1757109061085,-172.086887,0.00035616,10]
[383748714,1757109061094,-161.437625,0.00035616,10]
[383748715,1757109061104,-400.0,0.00035616,10]
[383748716,1757109061113,-400.0,0.00035616,10]
[383748717,1757109061123,-400.0,0.00035616,10]
[383748718,1757109061132,-400.0,0.00035616,10]
[383748719,1757109061142,-400.66916148,0.00035616,10]
[383748749,1757109061427,-356.60201488,0.00035616,10]
[383748752,1757109061444,-400.0,0.00035616,2]
[383748754,1757109061453,-400.0,0.00035616,10]
[383748756,1757109061462,-400.0,0.00035616,10]
[383748758,1757109061471,-400.0,0.00035616,2]
[383748760,1757109061481,-400.0,0.00035616,10]
[383748762,1757109061490,-478.9017151,0.00035616,10]
[383748764,1757109061499,-400.0,0.00035616,10]
[383748766,1757109061508,-400.0,0.00035616,10]
[383748768,1757109061518,-400.0,0.00035616,10]
[383748770,1757109061527,-472.95162936,0.00035616,10]
[383748772,1757109061536,-400.0,0.00035616,10]
[383748774,1757109061545,-400.0,0.00035616,10]
[383748775,1757109061554,-400.0,0.00035616,10]
[383748778,1757109061564,-301.07284554,0.00035616,10]
[383748780,1757109061573,-246.2615995,0.00035616,10]
[383748781,1757109061583,-402.73910246,0.00035616,10]
[383748784,1757109061592,-400.0,0.00035616,10]
[383748786,1757109061602,-400.0,0.00035616,10]
[383748788,1757109061611,-400.0,0.00035616,10]
[383748790,1757109061620,-400.0,0.00035616,10]
[383748792,1757109061630,-400.0,0.00035616,10]
[383748794,1757109061639,-400.0,0.00035616,10]
[383748796,1757109061649,-400.0,0.00035616,10]
[383748798,1757109061658,-400.0,0.00035616,10]
[383748800,1757109061668,-400.0,0.00035616,10]
[383748802,1757109061677,-400.0,0.00035616,5]
[383748804,1757109061687,-400.64015021,0.00035616,10]
[383748806,1757109061697,-400.0,0.00035616,10]
[383748808,1757109061707,-400.0,0.00035616,10]
[383748810,1757109061716,-400.0,0.00035616,10]
[383748812,1757109061726,-193.80804831,0.00035616,10]
[383748814,1757109061735,-400.0,0.00035616,10]
[383748816,1757109061745,-400.0,0.00035616,10]
[383748818,1757109061755,-400.0,0.00035616,10]